[Event "TUR-ch Youth U14 2019"]
[Site "Belek"]
[Date "2019.01.20"]
[Round "1"]
[White "Caglayan, Ezgisu"]
[Black "Tokat, Nehir"]
[Result "0-1"]
[ECO "A40"]
[WhiteElo "1199"]
[BlackElo "1665"]
[Annotator "NA"]
[PlyCount "82"]
[EventDate "2019.01.20"]
[EventType "swiss"]
[EventCountry "TUR"]
[SourceTitle "playchess.com"]
[Source "ChessBase"]
[SourceQuality "1"]
[TimeControl "5400+30"]

1. d4 {[%emt 0:00:30]} g6 {[%emt 0:00:30]} 2. f4 {[%emt 0:00:30]} Bg7 {[%emt 0:00:30]} 3. e3 {[%emt 0:00:30]} d6 {[%emt 0:00:30]} 4. Nf3 {[%emt 0:00:30]} Nd7 {[%emt 0:00:00]} 5. Bd3 {[%emt 0:00:00]} e5 {[%emt 0:00:00]} 6. fxe5 {[%emt 0:00:00]} dxe5 {[%emt 0:00:00]} 7. c3 {[%emt 0:00:30]} Qe7 {[%emt 0:00:00]} 8. dxe5 {[%emt 0:00:30]} Nxe5 {[%emt 0:00:30]} 9. Nxe5 {[%emt 0:05:30]} Qxe5 {[%emt 0:04:30]} 10. O-O {[%emt 0:10:30]} Nf6 {[%emt 0:01:30]} 11. Qa4+ {[%emt 0:08:30]} c6 {[%emt 0:11:30]} 12. Qf4 {[%emt 0:07:30]} Qe7 {[%emt 0:01:30]} 13. Bc4 {[%emt 0:10:30]} O-O {[%emt 0:03:30]} 14. Nd2 {[%emt 0:04:30]} Bf5 {[%emt 0:05:30]} 15. Nb3 {[%emt 0:07:30]} b5 {[%emt 0:19:30]} 16. Be2 {[%emt 0:01:30]} Nd5 {[%emt 0:00:30]} 17. Qf3 {[%emt 0:03:30]} Bh6 {[%emt 0:04:30]} 18. Nd4 {[%emt 0:03:30]} Bxe3+ {[%emt 0:03:30]} 19. Bxe3 {[%emt 0:01:30]} Qxe3+ {[%emt 0:00:30]} 20. Qxe3 {[%emt 0:01:30]} Nxe3 {[%emt 0:00:30]} 21. Rf2 {[%emt 0:05:30]} Rac8 {[%emt 0:16:30]} 22. Re1 {[%emt 0:01:30]} Rfe8 {[%emt 0:03:30]} 23. Nxc6 {[%emt 0:05:31]} Ng4 {[%emt 0:02:30]} 24. Rxf5 {[%emt 0:16:43]} gxf5 {[%emt 0:00:30]} 25. Nd4 {[%emt 0:00:20]} b4 {[%emt 0:00:56]} 26. Nxf5 {[%emt 0:00:32]} Rc5 {[%emt 0:00:53]} 27. Nd4 {[%emt 0:01:41]} bxc3 {[%emt 0:01:05]} 28. bxc3 {[%emt 0:00:05]} Rxc3 {[%emt 0:00:39]} 29. h3 {[%emt 0:00:19]} Nf6 {[%emt 0:00:16]} 30. Kf1 {[%emt 0:00:33]} Re4 {[%emt 0:01:02]} 31. Nb5 {[%emt 0:00:38]} Rce3 {[%emt 0:01:45]} 32. Nxa7 {[%emt 0:01:32]} Nd5 {[%emt 0:01:25]} 33. Rd1 {[%emt 0:00:53]} Rxe2 {[%emt 0:02:32]} 34. Rxd5 {[%emt 0:00:10]} Rxa2 {[%emt 0:00:05]} 35. Nb5 {[%emt 0:00:49]} Rb4 {[%emt 0:00:46]} 36. Nc3 {[%emt 0:00:34]} Rc2 {[%emt 0:00:34]} 37. Ne2 {[%emt 0:00:30]} f6 {[%emt 0:02:43]} 38. Rf5 {[%emt 0:00:29]} Rb1+ {[%emt 0:00:47]} 39. Kf2 {[%emt 0:00:30]} Rbb2 {[%emt 0:00:00]} 40. Rxf6 {[%emt 0:01:06]} Rxe2+ {[%emt 0:00:00]} 41. Kf3 {[%emt 0:00:14]} Rf2+ {[%emt 0:00:00]} 0-1

[Event "TUR-ch Youth U14 2019"]
[Site "Belek"]
[Date "2019.01.21"]
[Round "2"]
[White "Ince, Safiye Oyku"]
[Black "Cengel, Edibe Eylul"]
[Result "1-0"]
[ECO "B47"]
[WhiteElo "1870"]
[BlackElo "1359"]
[Annotator "NA RC"]
[PlyCount "69"]
[EventDate "2019.01.20"]
[EventType "swiss"]
[EventCountry "TUR"]
[SourceTitle "playchess.com"]
[Source "ChessBase"]
[SourceQuality "1"]
[TimeControl "5400+30"]

1. e4 c5 {[%emt 0:00:30]} 2. Nf3 {[%emt 0:00:30]} e6 {[%emt 0:00:30]} 3. d4 {[%emt 0:00:00]} cxd4 {[%emt 0:00:30]} 4. Nxd4 {[%emt 0:00:30]} Nc6 {[%emt 0:00:30]} 5. Nc3 {[%emt 0:00:00]} Qc7 {[%emt 0:00:00]} 6. g3 {[%emt 0:02:00]} a6 {[%emt 0:00:30]} 7. Bg2 {[%emt 0:00:00]} Nf6 {[%emt 0:02:30]} 8. O-O {[%emt 0:00:00]} h5 {[%emt 0:00:30] B47: Sicilian: Taimanov: 5 Nc3 Qc7 6 f4, 6 g3 and 6 Be2} (8... Be7 9. Re1 O-O 10. Nxc6 dxc6 11. e5 Rd8 12. Qe2 Nd5 {½-½ (12) Mamedov,R (2708)-Andreikin,D (2702) Minsk 2018}) 9. h3 {[%emt 0:00:30]} h4 {[%emt 0:10:30]} 10. g4 {[%emt 0:02:30] LiveBook: 5 Games} Bc5 {[%emt 0:10:30]} 11. Nxc6 {[%emt 0:13:30]} bxc6 $146 {[%emt 0:01:30]} ({Predecessor:} 11... dxc6 12. Qd3 e5 13. Be3 Bxe3 14. Qxe3 Be6 15. Rfd1 Nd7 16. Rd2 {1-0 (36) Vartopeanu,N (1849)-Miulescu,G (2161) Baile Olanesti 2013}) 12. Ne2 {[%emt 0:05:30]} a5 {[%emt 0:03:30]} 13. Bf4 {[%emt 0:00:30]} e5 {[%emt 0:13:30]} 14. Bg5 {[%emt 0:01:30]} Rb8 {[%emt 0:04:30]} 15. b3 {[%emt 0:32:30]} d6 {[%emt 0:58:30]} 16. Bxf6 {[%emt 0:07:30]} gxf6 {[%emt 0:00:30]} 17. Kh1 {[%emt 0:00:00]} Ke7 {[%emt 0:09:30]} 18. f4 {[%emt 0:03:00]} Bd7 {[%emt 0:07:30]} 19. Qd3 {[%emt 0:06:30]} Be6 {[%emt 0:04:19]} 20. c4 {[%emt 0:06:30]} Rbg8 {[%emt 0:03:13]} 21. a3 {[%emt 0:01:30]} Rh6 {[%emt 0:06:10]} 22. b4 {[%emt 0:07:30]} axb4 {[%emt 0:02:33]} 23. axb4 {[%emt 0:00:30]} Bxb4 {[%emt 0:02:51]} 24. fxe5 {[%emt 0:00:00]} Bc5 {[%emt 0:04:33]} 25. exf6+ {[%emt 0:00:00]} Rxf6 {[%emt 0:01:15]} 26. Rxf6 {[%emt 0:01:30]} Kxf6 {[%emt 0:00:36]} 27. Rf1+ {[%emt 0:00:00]} Ke7 {[%emt 0:00:34]} 28. Qc3 {[%emt 0:00:00]} Qd8 {[%emt 0:00:52]} (28... Qa7 $1 $14) 29. Nf4 {[%emt 0:00:30]} Kd7 {[%emt 0:00:48]} 30. Rb1 {[%emt 0:04:30]} Qc8 {[%emt 0:00:41]} (30... Qa8 $16) 31. Nd3 {[%emt 0:00:30]} Be3 {[%emt 0:00:30]} 32. c5 {[%emt 0:01:30]} (32. e5 $142) 32... d5 $18 {[%emt 0:00:31]} (32... Bxc5 33. Nxc5+ dxc5 34. Rd1+ (34. Qxc5 Rd8 $16) 34... Ke8 35. Qxc5 Bd7) 33. Ne5+ {[%emt 0:00:30]} Ke7 {[%emt 0:00:28]} 34. Qxe3 {[%emt 0:00:30]} f6 {[%emt 0:00:28]} 35. Nxc6+ {[%emt 0:00:30]} 1-0

[Event "TUR-ch Youth U14 2019"]
[Site "Belek"]
[Date "2019.01.21"]
[Round "2"]
[White "Bicer, Atakan Mert"]
[Black "Genc, Ugur Can"]
[Result "1-0"]
[ECO "D10"]
[WhiteElo "1854"]
[BlackElo "1532"]
[Annotator "NA RC"]
[PlyCount "59"]
[EventDate "2019.01.20"]
[EventType "swiss"]
[EventCountry "TUR"]
[SourceTitle "playchess.com"]
[Source "ChessBase"]
[SourceQuality "1"]
[TimeControl "5400+30"]

1. d4 c5 {[%emt 0:00:30]} 2. c3 {[%emt 0:00:30]} cxd4 {[%emt 0:00:30]} 3. cxd4 {[%emt 0:00:30]} d5 {[%emt 0:00:30]} 4. Nc3 {[%emt 0:00:30]} Nf6 {[%emt 0:00:30]} 5. Bg5 {[%emt 0:00:30]} Nc6 {[%emt 0:00:30]} 6. e3 {[%emt 0:00:30] D10: Slav Defence: 3 cxd5 (without early Nf3) and 3 Nc3} (6. Bxf6 gxf6 7. e3 a6 8. Rc1 Bf5 9. Bd3 Bg6 10. f4 f5 11. h4 h5 12. Nf3 e6 13. Na4 f6 {½-½ (39) Grischuk,A (2761)-Carlsen,M (2832) Paris 2017}) 6... e6 {[%emt 0:00:30]} 7. Bd3 {[%emt 0:05:30]} h6 {[%emt 0:06:30]} 8. Bh4 {[%emt 0:03:30]} Qb6 {[%emt 0:12:30]} 9. Nge2 {[%emt 0:24:30]} Qxb2 $146 {[%emt 0:15:30]} ({Predecessor:} 9... Bd7 10. O-O Na5 11. f3 Rc8 12. b3 Bb4 13. Rc1 a6 14. Kh1 Ba3 15. Rc2 Nc6 16. Na4 Qa7 17. Nc5 Nb4 18. Nxd7 Nxc2 19. Nxf6+ gxf6 20. Bxc2 {1-0 (20) Martin Capitan,F (2132)-Vinals Rioja,J (2022) La Pobla de Lillet 2008}) 10. O-O {[%emt 0:00:30]} Bb4 {[%emt 0:47:00]} (10... Qb6 $11 {keeps the balance.}) 11. Rb1 {[%emt 0:40:30]} (11. Nb5 $142 Kf8 12. a3) 11... Qa3 {[%emt 0:00:30]} 12. Nb5 {[%emt 0:10:30]} Qa5 {[%emt 0:06:30]} 13. Bxf6 {[%emt 0:05:30]} gxf6 {[%emt 0:01:30]} 14. a3 {[%emt 0:08:30]} Bf8 {[%emt 0:03:30]} 15. e4 {[%emt 0:01:30]} a6 {[%emt 0:04:30]} 16. Nbc3 {[%emt 0:03:30]} Nxd4 {[%emt 0:10:30]} 17. Nxd4 {[%emt 0:00:30]} Qxc3 {[%emt 0:00:00]} 18. Qa4+ {[%emt 0:07:30]} Kd8 {[%emt 0:06:03]} 19. Rb3 {[%emt 0:15:44]} (19. exd5 $16 Bc5 20. Nc6+ bxc6 21. Qxc6) 19... Bd7 {[%emt 0:07:20] [#]} 20. Qxd7+ $1 {[%emt 0:00:56]} Kxd7 {[%emt 0:00:30]} 21. Rxc3 {[%emt 0:00:00]} e5 {[%emt 0:00:09]} 22. Nf5 {[%emt 0:00:29]} d4 {[%emt 0:00:40]} 23. Rb3 {[%emt 0:00:31]} Kc6 {[%emt 0:00:50]} 24. Rfb1 {[%emt 0:00:35]} b5 $18 {[%emt 0:00:37]} 25. Rc1+ {[%emt 0:02:24]} Kb6 {[%emt 0:01:24]} 26. Kf1 {[%emt 0:00:59]} Bc5 {[%emt 0:02:22]} 27. a4 {[%emt 0:00:07]} b4 {[%emt 0:00:00]} 28. a5+ {[%emt 0:00:13]} Kxa5 {[%emt 0:02:08]} 29. Rxc5+ {[%emt 0:00:33]} Ka4 {[%emt 0:00:20]} 30. Bc2 {[%emt 0:00:00]} 1-0

[Event "TUR-ch Youth U14 2019"]
[Site "Belek"]
[Date "2019.01.21"]
[Round "2"]
[White "Guler, Muhammed Talha"]
[Black "Turk, Sarp"]
[Result "1-0"]
[ECO "B20"]
[WhiteElo "1816"]
[BlackElo "1569"]
[Annotator "NA RC"]
[PlyCount "67"]
[EventDate "2019.01.20"]
[EventType "swiss"]
[EventCountry "TUR"]
[SourceTitle "playchess.com"]
[Source "ChessBase"]
[SourceQuality "1"]
[TimeControl "5400+30"]

1. e4 c5 {[%emt 0:00:30]} 2. c4 {[%emt 0:00:30]} e5 {[%emt 0:00:30]} 3. Nc3 {[%emt 0:00:00]} Ne7 {[%emt 0:01:00] B20: Sicilian: Unusual White 2nd moves} (3... Nc6 4. d3 d6 5. a3 Be7 6. Rb1 a5 7. g3 f5 8. Bh3 fxe4 9. Nxe4 Nf6 10. Bxc8 {½-½ (10) Savchenko,B (2583)-Kurnosov,I (2566) Sochi 2007}) 4. g3 {[%emt 0:00:00]} g6 {[%emt 0:00:30]} 5. Bg2 {[%emt 0:00:30]} Bg7 {[%emt 0:00:30]} 6. Nge2 {[%emt 0:00:30]} O-O $146 {[%emt 0:02:30]} ({Predecessor:} 6... Nbc6 7. O-O O-O 8. d3 d6 9. Be3 Be6 10. Nd5 f5 11. f4 fxe4 12. dxe4 Kh8 13. fxe5 Rxf1+ 14. Qxf1 Nxe5 15. Bg5 Bxd5 16. cxd5 h6 17. Bf6 Qf8 18. Bxg7+ Qxg7 {1-0 (29) Srihari,L (1927)-Shuban,S (1966) Kolkata 2018}) 7. O-O {[%emt 0:00:00]} f5 {[%emt 0:06:30]} 8. d3 {[%emt 0:00:30]} h6 {[%emt 0:00:30]} 9. Be3 {[%emt 0:02:30]} d6 {[%emt 0:00:30]} 10. Qd2 {[%emt 0:01:30]} Kh7 {[%emt 0:00:30]} 11. f4 {[%emt 0:01:30]} Nbc6 {[%emt 0:08:30]} 12. Nd5 {[%emt 0:03:30]} Nd4 {[%emt 0:04:30]} 13. Rae1 {[%emt 0:04:30]} Nec6 {[%emt 0:05:30]} (13... Nxd5 $11 14. exd5 b6) 14. b4 {[%emt 0:02:30]} cxb4 {[%emt 0:05:30]} 15. Bxd4 {[%emt 0:01:30]} exd4 {[%emt 0:04:30]} 16. Nxb4 {[%emt 0:05:30]} Qa5 {[%emt 0:03:30]} 17. Rb1 {[%emt 0:00:30]} fxe4 {[%emt 0:09:30]} 18. Bxe4 {[%emt 0:00:30]} Bf5 {[%emt 0:00:30]} 19. Bxf5 {[%emt 0:03:30]} Rxf5 {[%emt 0:03:00]} 20. g4 {[%emt 0:01:30]} Rf7 $1 {[%emt 0:57:00]} 21. Ng3 $11 {[%emt 0:30:30]} Raf8 {[%emt 0:08:30]} 22. f5 {[%emt 0:05:30]} g5 {[%emt 0:24:20]} 23. Ne4 {[%emt 0:00:30]} Be5 {[%emt 0:01:01]} 24. Nd5 {[%emt 0:02:30]} Qxd2 {[%emt 0:06:02]} 25. Nxd2 {[%emt 0:00:00]} Ne7 {[%emt 0:00:00]} 26. Nc7 {[%emt 0:02:00]} Nc6 {[%emt 0:02:30]} 27. Ne6 {[%emt 0:00:30]} Re8 {[%emt 0:00:09]} 28. Ne4 {[%emt 0:00:30]} Nd8 {[%emt 0:00:13]} 29. Nxd8 {[%emt 0:03:30]} Rxd8 {[%emt 0:00:02]} 30. h4 {[%emt 0:00:30]} Bf4 {[%emt 0:00:48]} 31. hxg5 {[%emt 0:00:00]} hxg5 {[%emt 0:00:36]} 32. Rxf4 {[%emt 0:00:00]} gxf4 {[%emt 0:00:08]} 33. Ng5+ {[%emt 0:00:30]} Kg7 {[%emt 0:00:02]} 34. Ne6+ {[%emt 0:00:00]} 1-0

[Event "TUR-ch Youth U14 2019"]
[Site "Belek"]
[Date "2019.01.21"]
[Round "2"]
[White "Tokat, Nehir"]
[Black "Hoser, Buse"]
[Result "1-0"]
[ECO "E81"]
[WhiteElo "1665"]
[BlackElo "1317"]
[Annotator "NA"]
[PlyCount "111"]
[EventDate "2019.01.20"]
[EventType "swiss"]
[EventCountry "TUR"]
[SourceTitle "playchess.com"]
[Source "ChessBase"]
[SourceQuality "1"]
[TimeControl "5400+30"]

1. d4 Nf6 2. c4 g6 3. Nc3 Bg7 4. e4 d6 5. f3 O-O 6. Be3 c5 7. Nge2 Nc6 8. dxc5 dxc5 9. Qxd8 Rxd8 10. Bxc5 Nd7 11. Ba3 Nde5 12. Nf4 Bh6 13. Nfd5 e6 14. Ne7+ Kh8 {[%emt 0:44:00]} 15. Nxc6 {[%emt 0:43:30]} bxc6 {[%emt 0:02:30]} 16. Be7 {[%emt 0:05:30]} Nd3+ {[%emt 0:07:30]} 17. Bxd3 {[%emt 0:00:30]} Rxd3 {[%emt 0:00:30]} 18. Bf6+ {[%emt 0:00:30]} Bg7 {[%emt 0:10:30]} 19. Bxg7+ {[%emt 0:00:30]} Kxg7 {[%emt 0:00:00]} 20. Rd1 {[%emt 0:02:30]} Rxd1+ {[%emt 0:03:00]} 21. Kxd1 {[%emt 0:00:00]} Bb7 {[%emt 0:04:30]} 22. Ke2 {[%emt 0:04:00]} Rd8 {[%emt 0:00:30]} 23. Rd1 {[%emt 0:00:30]} Rxd1 {[%emt 0:00:30]} 24. Nxd1 {[%emt 0:01:30]} Kf6 {[%emt 0:00:30]} 25. b4 {[%emt 0:08:30]} Ke5 {[%emt 0:01:30]} 26. Kd3 {[%emt 0:03:30]} f5 {[%emt 0:01:30]} 27. exf5 {[%emt 0:01:30]} exf5 {[%emt 0:01:30]} 28. Nc3 {[%emt 0:03:30]} g5 {[%emt 0:04:30]} 29. h3 {[%emt 0:15:03]} h5 {[%emt 0:04:10]} 30. Ne2 {[%emt 0:04:48]} a6 {[%emt 0:10:06]} 31. a4 {[%emt 0:02:14]} h4 {[%emt 0:01:00]} 32. Ke3 {[%emt 0:03:50]} Bc8 {[%emt 0:01:14]} 33. Nd4 {[%emt 0:01:23]} Bd7 {[%emt 0:00:34]} 34. b5 {[%emt 0:01:00]} cxb5 {[%emt 0:01:21]} 35. cxb5 {[%emt 0:00:31]} axb5 {[%emt 0:01:37]} 36. axb5 {[%emt 0:00:27]} Kd5 {[%emt 0:02:19]} 37. Kd3 {[%emt 0:01:02]} Kc5 {[%emt 0:01:22]} 38. Ke3 {[%emt 0:01:24]} Kd5 {[%emt 0:00:33]} 39. Kd3 {[%emt 0:01:05]} Kc5 {[%emt 0:00:17]} 40. Ke3 {[%emt 0:00:32]} Kd5 {[%emt 0:00:37]} 41. b6 {[%emt 0:00:19]} Bc8 {[%emt 0:00:00]} 42. Kd3 {[%emt 0:00:15]} f4 {[%emt 0:00:06]} 43. Kc3 {[%emt 0:00:55]} Ba6 {[%emt 0:00:49]} 44. Nb3 {[%emt 0:00:36]} Kc6 {[%emt 0:00:53]} 45. Nd4+ {[%emt 0:00:00]} Kd5 {[%emt 0:01:13]} 46. Nc2 {[%emt 0:00:06]} Bb7 {[%emt 0:00:32]} 47. Kb4 {[%emt 0:00:26]} Kc6 {[%emt 0:01:11]} 48. Nd4+ {[%emt 0:00:22]} Kd6 {[%emt 0:00:29]} 49. Nb3 {[%emt 0:01:10]} Kd7 {[%emt 0:00:58]} 50. Nc5+ {[%emt 0:00:12]} Kc6 {[%emt 0:00:05]} 51. Nxb7 {[%emt 0:00:00]} Kxb7 {[%emt 0:00:00]} 52. Kc5 {[%emt 0:00:18]} Kb8 {[%emt 0:00:27]} 53. Kd5 {[%emt 0:00:47]} Kb7 {[%emt 0:00:30]} 54. Ke5 {[%emt 0:00:00]} Kxb6 {[%emt 0:00:00]} 55. Kf5 {[%emt 0:00:00]} Kc6 {[%emt 0:00:38]} 56. Kxg5 {[%emt 0:00:00]} 1-0

[Event "TUR-ch Youth U14 2019"]
[Site "Belek"]
[Date "2019.01.21"]
[Round "2"]
[White "Sinay, Ahmet"]
[Black "Caberoglu, Arda"]
[Result "1-0"]
[ECO "B10"]
[WhiteElo "1535"]
[BlackElo "1962"]
[Annotator "NA RC"]
[PlyCount "131"]
[EventDate "2019.01.20"]
[EventType "swiss"]
[EventCountry "TUR"]
[SourceTitle "playchess.com"]
[Source "ChessBase"]
[SourceQuality "1"]
[TimeControl "5400+30"]

1. e4 c6 {[%emt 0:00:30]} 2. d3 {[%emt 0:00:30]} d5 {[%emt 0:00:30]} 3. Nd2 {[%emt 0:00:00]} Nd7 {[%emt 0:04:30]} 4. Ngf3 {[%emt 0:01:30]} e6 {[%emt 0:02:30]} 5. g3 {[%emt 0:02:30]} Bc5 {[%emt 0:04:30]} 6. d4 {[%emt 0:02:30]} Be7 {[%emt 0:07:30]} 7. Bg2 {[%emt 0:06:30]} dxe4 {[%emt 0:01:30]} 8. Nxe4 {[%emt 0:00:30]} Ngf6 {[%emt 0:00:30]} 9. Nfd2 {[%emt 0:01:30]} (9. Nxf6+ $16 Nxf6 10. O-O) 9... O-O {[%emt 0:01:30]} 10. O-O {[%emt 0:00:30]} e5 {[%emt 0:04:30]} 11. dxe5 {[%emt 0:03:30]} Nxe5 {[%emt 0:00:30]} 12. Re1 {[%emt 0:00:30]} Ng6 {[%emt 0:05:30]} 13. Nxf6+ {[%emt 0:04:30]} Bxf6 {[%emt 0:00:30]} 14. Ne4 {[%emt 0:00:30]} Qxd1 {[%emt 0:06:30]} 15. Nxf6+ {[%emt 0:00:30]} gxf6 {[%emt 0:00:30]} 16. Rxd1 {[%emt 0:00:30]} Bf5 {[%emt 0:00:30]} 17. c3 {[%emt 0:00:30]} Kg7 {[%emt 0:06:30]} 18. f4 {[%emt 0:01:30]} Rfe8 {[%emt 0:04:30]} 19. Bf3 {[%emt 0:31:30]} Be4 {[%emt 0:56:30]} 20. Kf2 {[%emt 0:01:30]} Bxf3 {[%emt 0:06:30]} 21. Kxf3 {[%emt 0:00:30]} Ne7 {[%emt 0:01:30]} 22. Rd7 {[%emt 0:02:30]} Nd5 {[%emt 0:00:30]} 23. Rxb7 {[%emt 0:01:30]} Re1 {[%emt 0:00:30]} 24. c4 {[%emt 0:00:30]} Nb6 {[%emt 0:02:30]} 25. b3 {[%emt 0:00:30]} Rae8 {[%emt 0:02:30]} 26. Bb2 {[%emt 0:00:00]} R1e3+ {[%emt 0:08:30]} 27. Kg4 {[%emt 0:02:00]} Re2 {[%emt 0:00:30]} 28. Bd4 {[%emt 0:00:30]} Rxh2 {[%emt 0:00:30]} 29. Rxa7 {[%emt 0:01:30]} Nc8 {[%emt 0:00:30]} 30. Rd7 {[%emt 0:00:30]} Ree2 {[%emt 0:03:30]} 31. Bc5 {[%emt 0:01:30]} Kg6 {[%emt 0:05:52]} 32. Rad1 {[%emt 0:02:30]} h5+ {[%emt 0:06:14]} 33. Kf3 {[%emt 0:01:30]} Rc2 {[%emt 0:06:20]} 34. a3 {[%emt 0:04:30]} h4 {[%emt 0:01:29]} 35. Be3 {[%emt 0:07:30]} Rh3 {[%emt 0:02:20]} 36. Bf2 {[%emt 0:02:30]} hxg3 {[%emt 0:01:32]} 37. Bxg3 {[%emt 0:00:30]} Kf5 {[%emt 0:00:10]} 38. R7d3 {[%emt 0:02:30]} Ne7 {[%emt 0:00:26]} 39. R1d2 {[%emt 0:00:30]} Rc1 {[%emt 0:00:24]} 40. Rh2 {[%emt 0:01:30]} Rxh2 {[%emt 0:01:01]} 41. Bxh2 {[%emt 0:00:30]} Rf1+ {[%emt 0:00:00]} 42. Ke2 {[%emt 0:01:30]} Ra1 {[%emt 0:00:25]} 43. a4 {[%emt 0:00:00]} Ng6 {[%emt 0:00:11]} 44. Rd1 {[%emt 0:01:00]} Ra2+ {[%emt 0:00:50]} 45. Rd2 {[%emt 0:00:30]} Ra3 {[%emt 0:00:00]} 46. Rb2 {[%emt 0:01:30]} Nxf4+ {[%emt 0:00:24]} 47. Kd2 {[%emt 0:04:30]} Ke4 {[%emt 0:00:46]} (47... Ne6 $16) 48. Kc3 {[%emt 0:01:30]} c5 {[%emt 0:01:26]} 49. Rf2 {[%emt 0:00:00]} Ne6 {[%emt 0:00:10]} 50. Kb2 {[%emt 0:00:00]} Ke3 {[%emt 0:00:23]} 51. Rxf6 {[%emt 0:00:30]} Rxb3+ {[%emt 0:00:07]} 52. Kxb3 {[%emt 0:00:30]} Nd4+ {[%emt 0:00:01]} 53. Kb2 {[%emt 0:00:00]} Kd3 {[%emt 0:00:02]} 54. Bg1 {[%emt 0:01:00]} Kxc4 {[%emt 0:00:34]} 55. Bxd4 {[%emt 0:00:30]} cxd4 {[%emt 0:00:00]} 56. Rxf7 {[%emt 0:00:30]} Kd3 {[%emt 0:00:00]} 57. Rd7 {[%emt 0:00:00]} Ke3 {[%emt 0:00:00]} 58. a5 {[%emt 0:00:00]} d3 {[%emt 0:00:00]} 59. a6 {[%emt 0:00:30]} d2 {[%emt 0:00:00]} 60. a7 {[%emt 0:00:00]} Ke2 {[%emt 0:00:00]} 61. a8=Q {[%emt 0:00:00]} d1=Q {[%emt 0:00:24]} 62. Qe4+ {[%emt 0:00:30]} Kf2 {[%emt 0:00:04]} 63. Rxd1 {[%emt 0:00:00]} Kg3 {[%emt 0:00:07]} 64. Qf5 {[%emt 0:00:00]} Kh4 {[%emt 0:00:04]} 65. Qg6 {[%emt 0:00:30]} Kh3 {[%emt 0:00:05]} 66. Rh1# {[%emt 0:00:00]} 1-0

[Event "TUR-ch Youth U14 2019"]
[Site "Belek"]
[Date "2019.01.21"]
[Round "2"]
[White "Celik, Muhammed Yusuf"]
[Black "Danaci, Ege"]
[Result "0-1"]
[ECO "A54"]
[WhiteElo "1488"]
[BlackElo "2143"]
[Annotator "NA"]
[PlyCount "90"]
[EventDate "2019.01.20"]
[EventType "swiss"]
[EventCountry "TUR"]
[SourceTitle "playchess.com"]
[Source "ChessBase"]
[SourceQuality "1"]
[TimeControl "5400+30"]

1. d4 Nf6 {[%emt 0:00:30]} 2. c4 {[%emt 0:00:30]} d6 {[%emt 0:00:30]} 3. Nc3 {[%emt 0:00:00]} Nbd7 {[%emt 0:00:30]} 4. Nf3 {[%emt 0:00:30]} e5 {[%emt 0:02:30]} 5. e3 {[%emt 0:04:30]} Be7 {[%emt 0:05:30]} 6. Be2 {[%emt 0:00:30]} O-O {[%emt 0:00:30]} 7. O-O {[%emt 0:00:30]} c6 {[%emt 0:02:30]} 8. a3 {[%emt 0:02:30] A54: Old Indian Defence with Nf3, but without e4} (8. Rb1 Re8 9. b4 a6 10. a3 Bf8 11. Bb2 exd4 12. Nxd4 Ne5 13. Qc2 Bd7 14. Nf3 Nxf3+ 15. Bxf3 Bg4 {½-½ (26) Malakhatko,V (2576)-Raetsky,A (2442) Abu Dhabi 2010}) 8... Qc7 $146 {[%emt 0:08:30]} ({Predecessor:} 8... a5 9. Rb1 e4 10. Nd2 d5 11. f3 exf3 12. Bxf3 dxc4 13. Nxc4 Nb6 14. Ne5 Be6 15. e4 Nc4 16. Nxc4 Bxc4 {1-0 (52) Hansen,S (2041)-Koellner,F (1815) Helsingor 2018}) 9. b3 {[%emt 0:07:30]} Re8 {[%emt 0:01:30]} 10. Bb2 {[%emt 0:01:30]} Bf8 {[%emt 0:03:30]} 11. Rc1 {[%emt 0:07:30]} g6 {[%emt 0:02:30]} 12. Re1 {[%emt 0:04:30]} Bh6 {[%emt 0:03:30]} 13. Ra1 {[%emt 0:05:30]} Nf8 {[%emt 0:02:30]} 14. Nd2 {[%emt 0:04:30]} Bg7 {[%emt 0:02:30]} 15. Rc1 {[%emt 0:00:30]} exd4 {[%emt 0:02:30]} 16. exd4 {[%emt 0:01:30]} Ne6 {[%emt 0:00:30]} 17. Nf3 {[%emt 0:04:30]} Nf4 {[%emt 0:40:30]} 18. Bf1 {[%emt 0:48:00]} Bg4 {[%emt 0:02:30]} 19. Rxe8+ {[%emt 0:03:30]} Rxe8 {[%emt 0:00:30]} 20. h3 {[%emt 0:00:30]} Bf5 {[%emt 0:03:30]} 21. Kh2 {[%emt 0:05:30]} Qd7 {[%emt 0:08:30]} 22. Ne1 {[%emt 0:07:30]} Bh6 {[%emt 0:01:30]} 23. Ra1 {[%emt 0:00:30]} Ne4 {[%emt 0:22:30]} (23... d5 $15) 24. Nxe4 {[%emt 0:05:30]} Bxe4 {[%emt 0:00:30]} 25. Bc1 {[%emt 0:02:30]} Qf5 {[%emt 0:08:11]} ({Better is} 25... g5 $11) 26. Qg4 {[%emt 0:06:30]} Qf6 {[%emt 0:04:21]} 27. Be3 {[%emt 0:04:33]} g5 {[%emt 0:07:38]} 28. Bxf4 {[%emt 0:09:40]} (28. g3 $11 Bf5 29. Qd1) 28... Qxf4+ {[%emt 0:00:05]} 29. Qxf4 {[%emt 0:00:00]} gxf4 {[%emt 0:00:04]} 30. Nf3 {[%emt 0:00:10]} Bg7 {[%emt 0:01:25]} 31. Re1 {[%emt 0:01:16]} Kf8 {[%emt 0:00:03]} 32. d5 {[%emt 0:02:40]} cxd5 {[%emt 0:00:25]} 33. Ng5 {[%emt 0:02:11]} (33. Rd1 $17) 33... h6 {[%emt 0:00:12]} 34. Nxe4 {[%emt 0:00:00]} dxe4 {[%emt 0:00:08]} 35. g3 {[%emt 0:00:35]} f3 {[%emt 0:00:12]} 36. h4 {[%emt 0:00:41]} Bd4 {[%emt 0:00:37]} 37. Kg1 {[%emt 0:01:33]} a5 {[%emt 0:00:02]} 38. Rd1 {[%emt 0:00:24]} Bc5 {[%emt 0:00:33]} 39. b4 {[%emt 0:01:45]} axb4 {[%emt 0:00:30]} 40. axb4 {[%emt 0:00:02]} Bxb4 {[%emt 0:00:00]} 41. Rb1 {[%emt 0:00:01]} Bc5 {[%emt 0:00:04]} 42. Rxb7 {[%emt 0:00:30]} (42. Re1 {was worth a try.}) 42... Ra8 $19 {[%emt 0:00:00]} 43. Rc7 {[%emt 0:03:05]} Ra2 {[%emt 0:00:00]} 44. Rc6 {[%emt 0:00:14]} Bxf2+ {[%emt 0:00:06]} 45. Kh2 {[%emt 0:00:30]} e3 {[%emt 0:00:03]} 0-1